bitfinex/quotes_SOLUSD_20250102
["timestamp","ask_amount","ask_price","bid_price","bid_amount"]
[1735797968130,9.1792755,204.95,204.88,9.1792755]
[1735797968910,7.64012698,205.0,204.91,9.1792755]
[1735797969111,9.1792755,204.97,204.91,9.1792755]
[1735797969512,9.1792755,204.97,204.9,9.1792755]
[1735797971212,9.1792755,204.98,204.91,9.1792755]
[1735797972233,9.1792755,204.97,204.9,9.1792755]
[1735797972435,9.1792755,204.94,204.85,0.73186901]
[1735797972729,9.1792755,204.94,204.87,29.1792755]
[1735797973036,9.1792755,204.95,204.88,9.1792755]
[1735797976025,9.1792755,204.91,204.84,6.5414]
[1735797976223,9.1792755,204.9,204.84,6.5414]
[1735797976538,9.1792755,204.91,204.84,15.7206755]
[1735797976831,9.1792755,204.91,204.85,3.06464324]
[1735797977208,23.776884,204.95,204.85,3.06464324]
[1735797977409,20.0,204.96,204.84,15.7206755]
[1735797977410,9.1792755,204.91,204.84,15.7206755]
[1735797977831,9.1792755,204.92,204.85,9.1792755]
[1735797978528,9.1792755,204.91,204.84,6.5414]
[1735797978711,9.1792755,204.91,204.84,15.7206755]
[1735797980444,9.1792755,204.92,204.85,9.1792755]
[1735797981437,9.1792755,204.92,204.84,6.5414]
[1735797981640,9.1792755,204.92,204.85,9.1792755]
[1735797982334,9.1792755,204.92,204.84,6.5414]
[1735797982335,9.1792755,204.9,204.84,6.5414]
[1735797982643,9.1792755,204.85,204.79,6.3464]
[1735797982828,9.1792755,204.85,204.8,3.06370118]
[1735797983541,23.776884,204.92,204.8,3.06370118]
[1735797983542,9.1792755,204.81,204.8,3.06370118]
[1735797983712,9.1792755,204.81,204.74,15.5256755]
[1735797984440,9.1792755,204.81,204.75,3.06517719]
[1735797985021,9.1792755,204.81,204.74,15.5256755]
[1735797986340,9.1792755,204.81,204.75,3.06301202]
[1735797986743,9.1792755,204.82,204.75,12.24228752]
[1735797986930,9.1792755,204.82,204.75,9.1792755]
[1735797987535,9.1792755,204.83,204.76,9.1792755]
[1735797987734,7.64012698,204.91,204.77,9.1792755]
[1735797987935,7.64012698,204.91,204.8,9.1792755]
[1735797988138,23.776884,204.86,204.8,9.1792755]
[1735797988324,32.9561595,204.86,204.79,9.1792755]
[1735797988527,9.1792755,204.86,204.79,9.1792755]
[1735797989123,9.1792755,204.85,204.79,9.1792755]
[1735797989528,9.1792755,204.85,204.78,20.0]
[1735797989732,9.1792755,204.82,204.77,3.06063855]
[1735797990134,9.1792755,204.81,204.77,3.06063855]
[1735797990423,9.1792755,204.82,204.75,12.23991405]
[1735797991041,9.1792755,204.82,204.75,9.1792755]
[1735797992141,9.1792755,204.83,204.76,9.1792755]
[1735797992341,23.776884,204.9,204.78,9.1792755]
[1735797992342,9.1792755,204.85,204.78,9.1792755]
[1735797992539,23.776884,204.84,204.78,9.1792755]
[1735797994241,9.1792755,204.86,204.79,9.1792755]
[1735797994819,9.1792755,204.84,204.74,19.28921656]
[1735797995039,9.1792755,204.82,204.75,9.1792755]
[1735797998159,9.1792755,204.76,204.69,15.7294755]
[1735797998331,23.776884,204.74,204.63,0.7327427]
[1735797998655,9.1792755,204.74,204.67,9.1792755]
[1735798000250,14.36769724,204.74,204.67,14.36769724]
[1735798003529,43.776884,204.69,204.63,0.7327427]
[1735798003731,58.14458124,204.69,204.62,14.36769724]
[1735798003929,38.14458124,204.69,204.62,14.36769724]
[1735798004151,11.3119,204.76,204.64,14.36769724]
[1735798004152,14.36769724,204.71,204.64,14.36769724]
[1735798006747,38.14458124,204.7,204.63,14.36769724]
[1735798007871,38.14458124,204.67,204.6,14.36769724]
[1735798008167,14.36769724,204.7,204.64,14.36769724]
[1735798008367,34.36769724,204.72,204.65,14.36769724]
[1735798008766,23.776884,204.71,204.65,14.36769724]
[1735798008970,34.36769724,204.73,204.66,14.36769724]
[1735798009262,23.776884,204.72,204.66,14.36769724]
[1735798010169,14.36769724,204.73,204.66,14.36769724]
[1735798010381,14.36769724,204.75,204.68,14.36769724]
[1735798011858,38.14458124,204.76,204.69,14.36769724]
[1735798012059,14.36769724,204.75,204.68,14.36769724]
[1735798012950,38.14458124,204.76,204.69,14.36769724]
[1735798013155,14.36769724,204.75,204.69,14.36769724]
[1735798014556,14.36769724,204.75,204.68,14.36769724]
[1735798015471,14.36769724,204.77,204.7,14.36769724]
[1735798017071,14.36769724,204.78,204.71,14.36769724]
[1735798017379,14.36769724,204.81,204.74,14.36769724]
[1735798017766,14.36769724,204.8,204.73,14.36769724]
[1735798018474,14.36769724,204.79,204.72,14.36769724]
[1735798018776,20.0,204.76,204.72,14.36769724]
[1735798018975,20.0,204.75,204.7,14.36769724]
[1735798019268,20.0,204.74,204.71,14.36769724]
[1735798020389,20.0,204.75,204.71,14.36769724]
[1735798021853,14.36769724,204.79,204.72,14.36769724]
[1735798022078,20.0,204.76,204.73,14.36769724]
[1735798022274,20.0,204.76,204.7,12.2129]
[1735798022275,20.0,204.76,204.72,14.36769724]
[1735798023876,14.36769724,204.79,204.72,14.36769724]
[1735798024081,14.36769724,204.78,204.7,26.58059724]
[1735798024263,14.36769724,204.78,204.71,9.19099478]
[1735798024264,9.19099478,204.78,204.71,9.19099478]
[1735798024795,20.0,204.82,204.74,9.19099478]
[1735798025085,29.19099478,204.82,204.75,9.19099478]
[1735798026475,20.0,204.82,204.75,9.19099478]
[1735798026674,7.8131,204.86,204.77,9.19099478]
[1735798026675,9.19099478,204.84,204.77,9.19099478]
[1735798026880,9.19099478,204.85,204.78,9.19099478]
[1735798027267,9.19099478,204.84,204.77,9.19099478]
[1735798028690,9.19099478,204.85,204.78,9.19099478]
[1735798028985,9.19099478,204.81,204.72,12.94352965]
[1735798029187,9.19099478,204.79,204.72,21.40219478]
[1735798029687,9.19099478,204.8,204.73,9.19099478]
[1735798030084,9.19099478,204.77,204.7,15.69499478]
[1735798030986,9.19099478,204.78,204.71,9.19099478]
[1735798032288,14.36130099,204.78,204.71,14.36130099]
[1735798032491,14.36130099,204.78,204.7,20.86530099]
[1735798034089,14.36130099,204.76,204.7,6.504]
[1735798035288,14.36130099,204.74,204.67,14.36130099]
[1735798035483,14.36130099,204.76,204.69,14.36130099]
[1735798038075,14.36130099,204.76,204.67,12.94729566]
[1735798038276,14.36130099,204.73,204.66,6.5044]
[1735798038575,14.36130099,204.73,204.66,14.36130099]
[1735798038895,14.36130099,204.71,204.65,3.05670259]
[1735798039593,14.36130099,204.71,204.64,26.57780099]
[1735798041292,14.36130099,204.71,204.64,14.36130099]
[1735798041675,14.36130099,204.71,204.65,14.36130099]
[1735798042186,14.36130099,204.73,204.66,14.36130099]
[1735798042915,34.36130099,204.74,204.67,14.36130099]
[1735798043699,34.36130099,204.74,204.64,0.73277398]
[1735798043999,14.36130099,204.73,204.66,14.36130099]
[1735798044577,14.36130099,204.72,204.65,14.36130099]
[1735798045399,38.13818499,204.73,204.66,14.36130099]
[1735798046006,14.36130099,204.73,204.66,14.36130099]
[1735798046394,14.36130099,204.72,204.65,14.36130099]
[1735798046605,14.36130099,204.71,204.63,26.57840099]
[1735798047106,14.36130099,204.69,204.61,20.86570099]
[1735798047300,14.36130099,204.69,204.62,14.36130099]
[1735798049200,14.36130099,204.7,204.63,14.36130099]
[1735798049412,14.36130099,204.71,204.64,14.36130099]
[1735798050416,14.36130099,204.7,204.63,14.36130099]
[1735798050614,14.36130099,204.69,204.61,6.5044]
[1735798050907,14.36130099,204.69,204.62,14.36130099]
[1735798051110,14.36130099,204.69,204.63,14.36130099]
[1735798052182,23.776884,204.74,204.64,14.36130099]
[1735798052380,14.36130099,204.7,204.63,14.36130099]
[1735798054201,9.19882414,204.7,204.63,9.19882414]
[1735798054789,9.19882414,204.7,204.61,18.7222]
[1735798054790,9.19882414,204.66,204.57,12.2202]
[1735798055004,1.6066,204.69,204.6,9.19882414]
[1735798055205,9.19882414,204.66,204.6,9.19882414]
[1735798055399,9.19882414,204.66,204.59,9.19882414]
[1735798055598,9.19882414,204.65,204.58,9.19882414]
[1735798055797,9.19882414,204.65,204.57,12.2202]
[1735798055990,9.19882414,204.65,204.58,9.19882414]
[1735798056183,9.19882414,204.64,204.55,0.73300029]
[1735798056412,9.19882414,204.64,204.57,9.19882414]
[1735798057801,9.19882414,204.63,204.56,9.19882414]
[1735798058006,9.19882414,204.61,204.54,3.06094931]
[1735798058194,9.19882414,204.61,204.54,12.25977345]
[1735798058394,9.19882414,204.61,204.55,9.19882414]
[1735798058605,1.5358,204.61,204.5,3.79408771]
[1735798058786,9.19882414,204.57,204.5,12.25977345]
[1735798059314,20.0,204.57,204.5,12.25977345]
[1735798059492,20.0,204.57,204.48,7.6657]
[1735798059692,29.19882414,204.57,204.5,9.19882414]
[1735798060307,9.19882414,204.56,204.48,7.6657]
[1735798060495,9.19882414,204.56,204.49,9.19882414]
[1735798060893,9.19882414,204.55,204.48,6.1335]
[1735798061115,9.19882414,204.55,204.49,9.19882414]
[1735798063421,9.19882414,204.55,204.48,6.1335]
[1735798063594,9.19882414,204.55,204.49,9.19882414]
[1735798064088,1.5358,204.61,204.52,9.19882414]
[1735798064295,9.19882414,204.6,204.48,6.1335]
[1735798064495,52.97570814,204.58,204.51,9.19882414]
[1735798065621,9.19882414,204.57,204.51,9.19882414]
[1735798067511,1.5358,204.61,204.51,9.19882414]
[1735798067819,9.19882414,204.6,204.53,9.19882414]
[1735798068617,9.19882414,204.6,204.54,9.19882414]
[1735798068919,21.5358,204.61,204.54,9.19882414]
[1735798069099,9.19882414,204.6,204.53,9.19882414]
[1735798070225,9.19882414,204.6,204.54,9.19882414]
[1735798071506,1.5128,204.66,204.58,9.19882414]
[1735798071712,10.71162414,204.66,204.59,9.19882414]
[1735798072220,9.19882414,204.63,204.57,9.19882414]
[1735798072419,9.19882414,204.61,204.55,9.19882414]
[1735798072828,29.19882414,204.62,204.55,9.19882414]
[1735798073130,9.19882414,204.6,204.54,9.19882414]
[1735798073622,9.19882414,204.6,204.53,9.19882414]
[1735798073925,1.5128,204.66,204.51,9.19882414]
[1735798073926,20.0,204.55,204.51,9.19882414]
[1735798074223,9.19882414,204.58,204.51,9.19882414]
[1735798074411,9.19882414,204.58,204.52,9.19882414]
[1735798074827,29.19882414,204.59,204.52,9.19882414]
[1735798075915,23.776884,204.62,204.53,9.19882414]
[1735798076114,9.19882414,204.62,204.55,9.19882414]
[1735798076623,1.5128,204.66,204.58,9.19882414]
[1735798076807,9.19882414,204.65,204.58,9.19882414]
[1735798077308,9.19882414,204.7,204.63,9.19882414]
[1735798077506,20.0,204.67,204.63,9.19882414]
[1735798077707,20.0,204.66,204.62,9.19882414]
[1735798077945,9.19882414,204.63,204.55,6.288]
[1735798078242,23.776884,204.65,204.53,14.38596678]
[1735798078243,14.38596678,204.61,204.53,14.38596678]
[1735798079537,14.38596678,204.62,204.54,14.38596678]
[1735798082928,14.38596678,204.62,204.55,14.38596678]
[1735798083128,14.38596678,204.63,204.56,14.38596678]
[1735798083311,14.38596678,204.67,204.6,14.38596678]
[1735798083622,14.38596678,204.69,204.54,0.73303253]
[1735798083824,14.38596678,204.69,204.62,14.38596678]
[1735798084209,20.0,204.64,204.62,14.38596678]
[1735798084406,20.0,204.64,204.61,14.38596678]
[1735798085333,20.0,204.64,204.6,14.38596678]
[1735798087032,20.0,204.64,204.59,14.38596678]
[1735798088033,43.776884,204.63,204.58,14.38596678]
[1735798088247,23.776884,204.63,204.57,14.38596678]
[1735798089926,23.776884,204.63,204.56,14.38596678]
[1735798090131,14.38596678,204.61,204.54,14.38596678]
[1735798090732,34.38596678,204.6,204.53,14.38596678]
[1735798091123,20.0,204.6,204.53,14.38596678]
[1735798091326,20.0,204.58,204.53,14.38596678]
[1735798091636,20.0,204.56,204.51,14.38596678]
[1735798091933,20.0,204.56,204.52,14.38596678]
[1735798092639,20.0,204.59,204.52,14.38596678]
[1735798092935,23.776884,204.58,204.52,14.38596678]
[1735798093637,43.776884,204.59,204.53,14.38596678]
[1735798093939,20.0,204.57,204.52,14.38596678]
[1735798094231,20.0,204.56,204.51,14.38596678]
[1735798094435,20.0,204.55,204.51,14.38596678]
[1735798096324,20.0,204.54,204.5,14.38596678]
[1735798097949,14.38596678,204.61,204.53,14.38596678]
[1735798098841,20.0,204.57,204.53,14.38596678]
[1735798100735,20.0,204.59,204.55,14.38596678]
[1735798102841,20.0,204.59,204.52,0.73316801]
[1735798102842,20.0,204.59,204.56,14.38596678]
[1735798103048,20.0,204.59,204.55,14.38596678]
[1735798103346,20.0,204.59,204.54,14.38596678]
[1735798103643,23.776884,204.58,204.52,14.38596678]
[1735798104549,23.776884,204.58,204.53,14.38596678]
[1735798104726,14.38596678,204.6,204.53,14.38596678]
[1735798105450,20.0,204.55,204.5,14.38596678]
[1735798109047,20.0,204.55,204.48,0.73336219]
[1735798109249,20.0,204.55,204.5,14.38596678]
[1735798109650,14.38596678,204.56,204.47,13.8684]
[1735798109851,14.38596678,204.56,204.49,14.38596678]
[1735798110747,14.38596678,204.56,204.5,14.38596678]
[1735798111751,20.0,204.55,204.52,14.38596678]
[1735798112249,20.0,204.56,204.52,9.20827674]
[1735798112452,20.0,204.56,204.53,9.20827674]
[1735798112757,20.0,204.56,204.52,9.20827674]
[1735798113252,1.5654,204.63,204.52,9.20827674]
[1735798113456,23.776884,204.58,204.52,9.20827674]
[1735798114130,23.776884,204.58,204.49,12.2255]
[1735798114331,23.776884,204.58,204.52,9.20827674]
[1735798114533,9.20827674,204.58,204.51,9.20827674]
[1735798115230,9.20827674,204.58,204.49,12.2255]
[1735798115431,9.20827674,204.58,204.51,9.20827674]
[1735798115930,20.0,204.53,204.45,18.4305]
[1735798116126,20.0,204.53,204.48,9.20827674]
[1735798116833,23.776884,204.53,204.47,9.20827674]
[1735798117454,23.776884,204.53,204.48,9.20827674]
[1735798117646,23.776884,204.54,204.48,9.20827674]
[1735798118155,20.0,204.53,204.45,19.16398578]
[1735798118359,20.0,204.53,204.48,9.20827674]
[1735798120342,20.0,204.53,204.49,9.20827674]
[1735798120858,9.20552698,204.63,204.52,9.20827674]
[1735798121043,9.20827674,204.57,204.48,12.2258]
[1735798121249,9.20827674,204.55,204.49,9.20827674]
[1735798121560,20.0,204.52,204.48,9.20827674]
[1735798121761,9.20827674,204.55,204.48,9.20827674]
[1735798122059,20.0,204.52,204.48,9.20827674]
[1735798122664,23.776884,204.51,204.44,12.2281]
[1735798122864,23.776884,204.51,204.45,9.20827674]
[1735798123159,23.776884,204.51,204.47,9.20827674]
[1735798123559,23.776884,204.51,204.46,9.20827674]
[1735798124148,23.776884,204.51,204.47,9.20827674]
[1735798124543,23.776884,204.51,204.46,9.20827674]
[1735798124951,23.776884,204.51,204.45,9.20827674]
[1735798125155,32.98516074,204.51,204.4,19.35307727]
[1735798125362,32.98516074,204.51,204.44,9.20827674]
[1735798125661,23.776884,204.49,204.43,9.20827674]
[1735798126660,32.98516074,204.51,204.44,9.20827674]
[1735798126849,23.776884,204.5,204.44,9.20827674]
[1735798127041,23.776884,204.5,204.4,19.35307727]
[1735798127237,23.776884,204.5,204.45,9.20827674]
[1735798129967,23.776884,204.5,204.44,9.20827674]
[1735798131268,23.776884,204.5,204.45,9.20827674]
[1735798131562,23.776884,204.51,204.45,9.20827674]
[1735798131945,32.98516074,204.51,204.45,9.20827674]
[1735798132268,32.98516074,204.51,204.41,0.27155745]
[1735798132467,32.98516074,204.51,204.44,9.20827674]
[1735798133861,9.20827674,204.49,204.42,9.20827674]
[1735798134067,23.776884,204.48,204.42,9.20827674]
[1735798134361,20.0,204.52,204.43,9.20827674]
[1735798134667,20.0,204.52,204.46,9.20827674]
[1735798134864,20.0,204.52,204.47,9.20827674]
[1735798137685,20.0,204.52,204.46,9.20827674]
[1735798137857,29.20827674,204.52,204.45,9.20827674]
[1735798138679,29.20827674,204.52,204.44,12.2285]
[1735798138880,29.20827674,204.52,204.45,9.20827674]
[1735798139778,23.776884,204.51,204.41,0.27155745]
[1735798139968,9.20827674,204.5,204.43,9.20827674]
[1735798140504,20.0,204.52,204.45,9.20827674]
[1735798140689,20.0,204.52,204.46,9.20827674]
[1735798141492,20.0,204.52,204.47,9.20827674]
[1735798141787,20.0,204.52,204.46,9.20827674]
[1735798142256,20.0,204.52,204.47,9.20827674]
[1735798142657,20.0,204.52,204.44,12.2285]
[1735798142879,20.0,204.52,204.46,9.20827674]
[1735798144782,23.776884,204.51,204.46,9.20827674]
[1735798145195,23.776884,204.51,204.45,9.20827674]
[1735798146500,32.98516074,204.51,204.44,9.20827674]
[1735798146791,20.0,204.52,204.46,9.20827674]
[1735798147273,29.20827674,204.52,204.45,9.20827674]
[1735798147472,29.20827674,204.52,204.44,9.20827674]
[1735798148180,23.776884,204.51,204.44,9.20827674]
[1735798148957,32.98516074,204.51,204.41,1.00503169]
[1735798149161,32.98516074,204.51,204.43,9.20827674]
[1735798149376,23.776884,204.49,204.42,9.20827674]
[1735798149680,32.98516074,204.49,204.42,12.27720279]
[1735798149980,32.98516074,204.49,204.42,3.06892605]
[1735798150180,32.98516074,204.49,204.41,0.27155745]
[1735798150385,9.20827674,204.48,204.41,9.47983419]
[1735798150565,29.20827674,204.49,204.42,9.20827674]
[1735798151362,1.5836,204.55,204.44,9.20827674]
[1735798151583,9.20827674,204.52,204.45,9.20827674]
[1735798152079,9.20827674,204.51,204.44,9.20827674]
[1735798152781,9.20827674,204.5,204.43,9.20827674]
[1735798153957,9.20827674,204.49,204.42,9.20827674]
[1735798154502,9.20827674,204.48,204.41,0.27155745]
[1735798154714,9.20827674,204.47,204.41,0.27155745]
[1735798156495,9.20827674,204.48,204.41,9.47983419]
[1735798156689,9.20827674,204.47,204.41,0.27155745]
[1735798158081,9.20827674,204.48,204.41,9.47983419]
[1735798158386,9.20827674,204.47,204.41,0.27155745]
[1735798159463,9.20827674,204.48,204.41,9.47983419]
[1735798159771,9.20827674,204.48,204.42,9.20827674]
[1735798160166,9.20827674,204.48,204.41,9.47983419]
[1735798160481,9.20827674,204.47,204.41,0.27155745]
[1735798162093,9.20827674,204.46,204.41,0.27155745]
[1735798162584,9.20827674,204.43,204.41,0.27155745]
[1735798162785,1.6223,204.48,204.41,0.27155745]
[1735798162786,9.20827674,204.42,204.41,0.27155745]
[1735798164206,10.83057674,204.42,204.41,0.27155745]
[1735798164680,9.20827674,204.45,204.41,0.27155745]
[1735798164880,7.64012698,204.46,204.41,0.27155745]
[1735798165280,20.0,204.44,204.41,0.27155745]
[1735798165502,16.84840372,204.46,204.41,0.27155745]
[1735798166085,9.20827674,204.46,204.41,0.27155745]
[1735798166285,9.20827674,204.45,204.41,0.27155745]
[1735798166469,23.776884,204.47,204.41,0.27155745]
[1735798166470,9.20827674,204.44,204.41,0.27155745]
[1735798166671,9.20827674,204.43,204.41,0.27155745]
[1735798166885,29.20827674,204.44,204.41,0.27155745]
[1735798167271,9.20827674,204.43,204.41,0.27155745]
[1735798170087,1.6223,204.48,204.41,0.27155745]
[1735798170278,9.20827674,204.45,204.41,0.27155745]
[1735798171093,9.20827674,204.44,204.41,0.27155745]
[1735798172676,7.54167674,204.43,204.41,0.27155745]
[1735798172871,163.37073258,204.67,204.41,0.27155745]
[1735798172872,113.09032109,204.79,204.78,16.6618]
[1735798173095,24.41643671,205.05,204.88,10.0]
[1735798173285,1.6465,205.13,204.96,10.0]
[1735798173475,45.17782649,204.98,204.96,147.1]
[1735798173675,90.38872372,205.14,205.13,5.0]
[1735798173975,0.23,205.34,205.21,5.0]
[1735798174175,5.23,205.34,205.17,5.0]
[1735798174389,63.84081571,205.3,205.24,9.20827674]
[1735798174691,0.23,205.34,205.27,9.20827674]
[1735798174898,0.23,205.34,205.28,9.20827674]
[1735798175099,9.20827674,205.39,205.29,10.03793391]
[1735798175315,36.39361944,205.46,205.29,35.03023303]
[1735798175516,36.39361944,205.46,205.3,6.69195594]
[1735798175517,9.20827674,205.36,205.3,6.69195594]
[1735798175806,36.83310696,205.37,205.31,48.09616359]
[1735798176007,32.38959579,205.46,205.31,48.09616359]
[1735798176192,6.344,205.47,205.33,24.25359693]
[1735798176390,22.86365994,205.34,205.32,10.03793391]
[1735798176598,22.86365994,205.36,205.34,10.03793391]
[1735798176800,22.86365994,205.36,205.31,13.38391189]
[1735798176994,44.7,205.46,205.31,13.38391189]
[1735798177185,46.64054394,205.32,205.31,13.38391189]
[1735798177391,46.64054394,205.32,205.31,4.58077952]
[1735798177594,55.88882149,205.32,205.31,26.33602534]
[1735798178000,55.88882149,205.32,205.31,23.00282534]
[1735798178202,55.88882149,205.32,205.22,60.22760354]
[1735798178203,23.776884,205.31,205.22,60.22760354]
[1735798178491,32.11193749,205.32,205.22,60.22760354]
[1735798178492,20.35532468,205.23,205.22,60.22760354]
[1735798178892,22.86365994,205.26,205.22,60.22760354]
[1735798179312,22.86365994,205.28,205.22,92.94824822]
[1735798180114,20.0,205.32,205.22,92.94824822]
[1735798180315,3.77757055,205.28,205.22,92.94824822]
[1735798180529,22.86365994,205.3,205.22,97.94824822]
[1735798180695,22.86365994,205.3,205.23,22.86365994]
[1735798180895,20.0,205.27,205.23,22.86365994]
[1735798181201,22.86365994,205.32,205.23,22.86365994]
[1735798181411,22.86365994,205.34,205.23,22.86365994]
[1735798181914,22.86365994,205.34,205.3,58.89133023]
[1735798182117,22.86365994,205.36,205.3,58.89133023]
[1735798182297,23.776884,205.35,205.3,58.89133023]
[1735798182915,23.776884,205.33,205.3,58.89133023]
[1735798183111,43.776884,205.31,205.3,58.89133023]
[1735798183291,19.523734,205.44,205.3,58.89133023]
[1735798183489,22.86365994,205.36,205.3,58.89133023]
[1735798183919,23.776884,205.35,205.32,43.98629846]
[1735798184128,22.86365994,205.38,205.32,43.98629846]
[1735798184296,22.86365994,205.4,205.32,43.98629846]
[1735798184916,14.7,205.54,205.32,43.98629846]
[1735798185115,22.86365994,205.38,205.32,43.98629846]
[1735798185409,22.86365994,205.38,205.33,5.0]
[1735798185610,22.86365994,205.38,205.32,43.98629846]
[1735798185813,22.86365994,205.38,205.36,29.22075382]
[1735798186698,23.776884,205.37,205.36,29.22075382]
[1735798187410,69.50420388,205.37,205.36,29.22075382]
[1735798187898,20.0,205.35,205.34,14.56927858]
[1735798188100,66.64054394,205.35,205.34,14.56927858]
[1735798189416,22.86365994,205.35,205.31,43.7900324]
[1735798189617,22.86365994,205.32,205.31,43.7900324]
[1735798189937,22.86365994,205.32,205.31,14.56927858]
[1735798190900,22.86365994,205.32,205.3,73.46060881]
[1735798191103,22.86365994,205.32,205.31,7.26434957]
[1735798191799,23.776884,205.31,205.27,14.56927858]
[1735798191996,45.72731988,205.28,205.27,14.56927858]
[1735798192315,20.0,205.25,205.23,14.56927858]
[1735798192634,46.64054394,205.24,205.22,74.79688212]
[1735798192836,43.776884,205.33,205.22,74.79688212]
[1735798193129,24.3505,205.34,205.22,60.22760354]
[1735798193337,14.7,205.33,205.22,60.22760354]
[1735798193503,14.7,205.33,205.2,14.56927858]
[1735798193709,22.86365994,205.21,205.2,14.56927858]
[1735798195449,12.1793,205.27,205.19,14.56927858]
[1735798195736,22.86365994,205.21,205.19,14.56927858]
[1735798195935,22.86365994,205.21,205.18,14.56927858]
[1735798196238,22.86365994,205.22,205.18,14.56927858]
[1735798196425,12.1735,205.37,205.29,5.0]
[1735798196612,24.3296,205.52,205.36,22.86365994]
[1735798196802,24.3296,205.52,205.32,5.0]
[1735798196803,24.3296,205.52,205.39,22.86365994]
[1735798197003,12.1648,205.51,205.43,22.86365994]
[1735798197538,20.0,205.43,205.38,22.86365994]
[1735798197711,20.0,205.43,205.36,22.86365994]
[1735798197906,20.0,205.41,205.36,22.86365994]
[1735798198206,20.0,205.39,205.34,27.86365994]
[1735798198421,22.86365994,205.42,205.34,27.86365994]
[1735798199225,22.86365994,205.42,205.35,5.0]
[1735798199728,22.86365994,205.44,205.39,5.0]
[1735798200021,22.86365994,205.42,205.35,5.0]
[1735798200221,37.12277928,205.41,205.35,5.0]
[1735798200423,23.776884,205.51,205.35,5.0]
[1735798200608,37.12277928,205.42,205.35,5.0]
[1735798201413,37.12277928,205.39,205.35,5.0]
[1735798203124,37.12277928,205.37,205.33,5.0]
[1735798203329,37.12277928,205.34,205.33,5.0]
[1735798203624,37.12277928,205.4,205.33,5.0]
[1735798203823,37.12277928,205.4,205.35,5.0]
[1735798204017,37.12277928,205.42,205.35,5.0]
[1735798204330,12.1672,205.47,205.35,5.0]
[1735798204331,37.12277928,205.4,205.35,5.0]
[1735798204906,37.12277928,205.36,205.35,5.0]
[1735798205503,20.14303587,205.36,205.35,5.0]
[1735798205727,20.14303587,205.36,205.35,33.776884]
[1735798206134,37.12277928,205.37,205.36,23.776884]
[1735798206510,37.12277928,205.37,205.35,10.0]
[1735798206912,37.12277928,205.37,205.33,6.585]
[1735798207122,37.12277928,205.34,205.33,6.585]
[1735798207924,37.12277928,205.34,205.33,30.361884]
[1735798208132,37.12277928,205.38,205.36,5.0]
[1735798208529,37.12277928,205.37,205.36,5.0]
[1735798210421,37.12277928,205.38,205.36,5.0]
[1735798210820,37.12277928,205.4,205.36,5.0]
[1735798211020,37.12277928,205.4,205.38,5.0]
[1735798211634,37.12277928,205.42,205.38,5.0]
[1735798211815,37.12277928,205.42,205.38,10.0]
[1735798212417,37.12277928,205.43,205.39,5.0]
[1735798213135,37.12277928,205.43,205.41,5.0]
[1735798213342,57.12277928,205.44,205.39,10.0]
[1735798214339,57.12277928,205.45,205.39,10.0]
[1735798215221,37.12277928,205.46,205.41,10.0]
[1735798215438,37.12277928,205.46,205.33,6.585]
[1735798215439,37.12277928,205.42,205.33,6.585]
[1735798215747,37.12277928,205.35,205.33,6.585]
[1735798216040,37.12277928,205.37,205.34,5.0]
[1735798216238,37.12277928,205.37,205.35,5.0]
[1735798216427,37.12277928,205.39,205.35,5.0]
[1735798216629,37.12277928,205.39,205.36,5.0]
[1735798216829,57.12277928,205.41,205.36,5.0]
[1735798217629,20.0,205.4,205.36,5.0]
[1735798220245,20.0,205.41,205.36,5.0]
[1735798221249,35.00409883,205.44,205.37,5.0]
[1735798221541,22.83489883,205.42,205.37,5.0]
[1735798222339,22.83489883,205.41,205.37,5.0]
[1735798224439,20.0,205.45,205.37,5.0]
[1735798224747,22.83489883,205.44,205.38,5.0]
[1735798225129,22.83489883,205.43,205.38,5.0]
[1735798226045,22.83489883,205.43,205.37,5.0]
[1735798226046,20.0,205.46,205.37,5.0]
[1735798226246,22.83489883,205.4,205.37,5.0]
[1735798226545,20.0,205.41,205.38,3.1717217]
[1735798227043,20.0,205.41,205.36,5.0]
[1735798227245,22.83489883,205.39,205.36,5.0]
[1735798227931,22.83489883,205.37,205.36,10.0]
[1735798228123,22.83489883,205.39,205.36,5.0]
[1735798228527,22.83489883,205.39,205.34,5.0]
[1735798228937,22.83489883,205.39,205.35,3.15744268]
[1735798229138,22.83489883,205.37,205.35,3.15744268]
[1735798229339,22.83489883,205.36,205.35,3.15744268]
[1735798230144,22.83489883,205.36,205.33,14.56927858]
[1735798230342,22.83489883,205.34,205.33,14.56927858]